{"text_format":"1","workbook":"xlsx","n_sheets":10,"sheets":["Import","Start","Försättsblad","Anvisningar","VP205","FlexDimensioner","Kontroll","db_kontroller","Combo","db"],"not_rendered":{"charts":0,"images":14,"macros":1,"external_links":2,"defined_names":4910,"comments":0,"pivot_tables":0},"unopened":[],"bounds":{"document_bytes":16777216,"sheet_cells":100000,"rows_first":2000,"rows_last":500,"rows_between":2000,"halvings":0,"cell_chars":16384,"cell_head_chars":4096},"cells_cut":0,"cells_raw":0,"read":"whole","date_system":"1900"}

{"sheet":"Import","index":0,"n_rows":0,"n_cols":0,"rows_kept":0,"cut":false,"hidden":true,"merged":[]}

{"sheet":"Start","index":1,"n_rows":24,"n_cols":3,"rows_kept":24,"cut":false,"hidden":false,"merged":[]}
[]
[]
[]
[]
[]
[]
[]
[null,null,"BLANKETT  VP205"]
[]
[null,null,"AKTIEEMISSIONER -"]
[null,null,"Medverkan vid aktieemissioner och börsintroduktioner"]
[]
[null,null,"Blanketten skall vara Statistiska centralbyrån tillhanda senast"]
[null,null,"den 15:e i efterföljande månad."]
[]
[]
[null,null,"Uppgifter om orgnr, datum etc lämnas i dialogrutan som kommer upp då ni "]
[null,null,"klickar på \"Skicka in blanketten\""]
[]
[null,null,"Kvittens från SCB på mottagen blankett"]
[null,"Uppgiftslämnare:"]
[null,"Rapportdatum:"]
[null,"Inskickat av:"]
[null,"Mottaget:",{"$f":"NOW()","v":"2020-01-02T00:03:56.710"}]

{"sheet":"Försättsblad","index":2,"n_rows":35,"n_cols":6,"rows_kept":35,"cut":false,"hidden":false,"merged":[[17,1,17,7],[18,1,18,7],[19,1,19,7],[6,1,6,2],[15,1,15,7],[16,1,16,7],[10,1,10,5]]}
[]
[null,"Betalningsbalansstatistik"]
[]
[]
[null,"Rapportperiod",null,null,null,"Blankettid"]
[]
[null,null,null,null,null,"VP205"]
[]
[null,"Kontaktperson"]
[]
[]
[]
[]
[]
[null,"Egna noteringar"]
[]
[]
[]
[]
[]
[]
[]
[]
[null,"STATISTISKA CENTRALBYRÅN"]
[null,"ES / BFM / BoP"]
[null,"Box 24300"]
[null,"104 51 Stockholm"]
[]
[]
[null,"OBS!!! "]
[null,"Uppgifter som noteras på detta försättsblad kan lagras och/eller skrivas ut av rapportören,"]
[null,"men det följer inte med i rapporteringen till SCB. "]
[]
[null,"Fritext kan skrivas i Kommentar-rutan som finns i inloggningen när du klickar på"]
[null,"Skicka in blanketten i Start-fliken eller i E-post till SCB: bop@scb.se"]

{"sheet":"Anvisningar","index":3,"n_rows":22,"n_cols":2,"rows_kept":22,"cut":false,"hidden":false,"merged":[[2,1,2,2],[5,1,5,2],[8,1,8,2],[9,1,9,2],[6,1,6,2],[11,1,11,2],[21,1,21,2],[12,1,12,2],[14,1,14,2],[15,1,15,2],[17,1,17,2],[18,1,18,2],[20,1,20,2]]}
[null,"Anvisningar"]
[]
[null,"Blankett VP205 - Aktieemissioner "]
[null,"Medverkan vid aktieemissioner och börsintroduktioner"]
[]
[null,"Rapporten omfattar "]
[null,"nyemissioner av aktier och konvertering av skuldebrev till aktier där motparten är utländsk. Rapportmånad är den månad då försäljningen eller konverteringen gått till likvid."]
[]
[null,"Utländsk motpart"]
[null,"Med utländsk motpart avses motpart med utländsk adress. Utländsk filial till svenskt företag betraktas således som utlänning"]
[]
[null,"Svenska kronor, SEK"]
[null,"Belopp anges i tusental svenska kronor och utländsk valuta omräknas till SEK enligt valuakurs vid transaktionstillfället."]
[]
[null,"Nyemissioner"]
[null,"Rapporten avser nya aktier  sålda till utlandet i samband med emission samt utländska nyemitterade aktier placerade på den svenska marknaden."]
[null," "]
[null,"Konverteringar"]
[null,"Rapporten avser det belopp som konverterats till aktier av konvertibla skuldebrev."]
[]
[null,"Rapporten omfattar inte"]
[null,"private placements, apportemissioner, sekundärhandel. Sekundärhandel rapporteras på blankett VP207 eller VP208."]

{"sheet":"VP205","index":4,"n_rows":22,"n_cols":3,"rows_kept":22,"cut":false,"hidden":false,"merged":[]}
[]
[null,"AKTIEEMISSIONER                                                  VP205"]
[null,"Medverkan vid aktieemissioner och börsintroduktioner"]
[null,"Rapporteras i 1000-tal kronor"]
[]
[]
[null,"Emitterande företag","Svenska aktier förvärvade av utländsk investerare"]
[null,"Värdepapper"]
[null,"Värdepapper"]
[null,"Värdepapper"]
[null,"Värdepapper"]
[null,"Värdepapper"]
[null,"Totalt"]
[]
[]
[null,"Land","Utländska aktier förvärvade av svensk investerare"]
[null,"Land"]
[null,"Land"]
[null,"Land"]
[null,"Land"]
[null,"Land"]
[null,"Totalt"]

{"sheet":"FlexDimensioner","index":5,"n_rows":355,"n_cols":6,"rows_kept":355,"cut":false,"hidden":true,"merged":[]}
["Land","VALFRI","Värdepapper","VALFRI","Finansieringsform","VALFRI"]
["Afghanistan","AF","AAK","SE0011337708","Kontant överföring","F1"]
["Albania","AL","ACAD","SE0007897079","Lån i utlandet","F2"]
["Algeria","DZ","ACE","SE0010573113","Insats av apportegendom","F3"]
["American Samoa","AS","ACTI","SE0001137985","Övrigt","F4"]
["Andorra","AD","ADDT B","SE0005568136","Ospecificerat","X"]
["Angola","AO","AF B","SE0005999836"]
["Anguilla","AI","ALFA","SE0000695876"]
["Antarctica","AQ","ALIF B","SE0007982814"]
["Antigua and Barbuda","AG","ALIG","SE0007158910"]
["Argentina","AR","AMBEA","SE0009663826"]
["Armenia","AM","ANOD B","SE0000472268"]
["Aruba","AW","ANOT","SE0010415281"]
["Australia","AU","AQ","SE0000772956"]
["Austria","AT","ARISE","SE0002095604"]
["Azerbaijan","AZ","ARJO B","SE0010468116"]
["Bahamas","BS","ASSA B","SE0007100581"]
["Bahrain","BH","ATCO A","SE0011166610"]
["Bangladesh","BD","ATCO B","SE0011166628"]
["Barbados","BB","ATIC","SE0009269467"]
["Belarus","BY","ATORX","SE0000767188"]
["Belgium","BE","ATRE","SE0001625534"]
["Belize","BZ","ATRLJ B","SE0000191827"]
["Benin","BJ","ATT","SE0007666110"]
["Bermuda","BM","AXFO","SE0006993770"]
["Bhutan","BT","AZA","SE0012454072"]
["Bolivia","BO","B3","SE0008347660"]
["Bonaire / St Eustatius / Saba","BQ","BACTI B","SE0005878741"]
["Bosnia and Herzegovina","BA","BALCO","SE0010323998"]
["Botswana","BW","BALD B","SE0000455057"]
["Bouvet Island","BV","BEGR","SE0008321921"]
["Brazil","BR","BEIA B","SE0011090547"]
["British Indian Ocean Territory ","IO","BEIJ B","SE0011116508"]
["Brunei Darussalam","BN","BELE","SE0000671711"]
["Bulgaria","BG","BERG B","SE0000101362"]
["Burkina Faso","BF","BESQ","SE0005991411"]
["Burundi","BI","BETS B","SE0012454379"]
["Cambodia","KH","BHG","SE0010948588"]
["Cameroon","CM","BILI A","SE0009921588"]
["Canada","CA","BILL","SE0000862997"]
["Cape Verde","CV","BINV","SE0000789711"]
["Cayman Islands","KY","BIOA B","SE0010323311"]
["Central African Republic","CF","BIOG B","SE0000470395"]
["Ceuta","XC","BIOT","SE0000454746"]
["Chad","TD","BMAX","SE0003303627"]
["Chile","CL","BOL","SE0012455673"]
["China","CN","BONAV A","SE0008091573"]
["Christmas Island","CX","BONAV B","SE0008091581"]
["Cocos (Keeling) Islands ","CC","BONEX","SE0009858152"]
["Colombia","CO","BONG","SE0000396061"]
["Comoros","KM","BOOZT","SE0009888738"]
["Congo","CG","BORG","SE0012455350"]
["Congo, the Democratic Republic of the ","CD","BOUL","SE0011231158"]
["Cook Islands","CK","BRAV","SE0007491303"]
["Costa Rica","CR","BRG B","SE0000101297"]
["Côte d'Ivoire","CI","BRIN B","SE0008347652"]
["Croatia","HR","BTS B","SE0000805426"]
["Cuba","CU","BUFAB","SE0005677135"]
["Curaçao","CW","BULTEN","SE0003849223"]
["Cyprus","CY","BURE","SE0000195810"]
["Czech Republic","CZ","CALTX","SE0010441584"]
["Denmark","DK","CAMX","SE0007692850"]
["Djibouti","DJ","CANTA","SE0006371126"]
["Dominica","DM","CAST","SE0000379190"]
["Dominican Republic","DO","CAT A","SE0000188500"]
["Ecuador","EC","CAT B","SE0000188518"]
["Egypt","EG","CATE","SE0001664707"]
["El Salvador","SV","CBTT B","SE0006143129"]
["Equatorial Guinea","GQ","CCOR B","SE0000102824"]
["Eritrea","ER","CEVI","SE0000683484"]
["Estonia","EE","CLA B","SE0002626861"]
["Ethiopia","ET","CLAS B","SE0000584948"]
["Falkland Islands (Malvinas)","FK","COIC","SE0003950864"]
["Faroe Islands","FO","COLL","SE0007048020"]
["Fiji","FJ","CONS B","SE0000236382"]
["Finland","FI","COOR","SE0007158829"]
["France","FR","CORE A","SE0010714279"]
["France, Metropolitan","FX","CORE B","SE0010714287"]
["French Guyana","GF","CORE PREF","SE0010714311"]
["French Polynesia","PF","CRAD B","SE0002016352"]
["French Southern Territories","TF","CRED A","SE0004390516"]
["Gabon","GA","CTT","SE0000418923"]
["Gambia","GM","DEDI","SE0003909282"]
["Georgia","GE","DIOS","SE0001634262"]
["Germany","DE","DOM","SE0007691613"]
["Ghana","GH","DORO","SE0000215493"]
["Gibraltar","GI","DUNI","SE0000616716"]
["Greece","GR","DURC B","SE0000331266"]
["Greenland","GL","DUST","SE0006625471"]
["Grenada","GD","EAST","SE0002158568"]
["Guadeloupe","GP","EDGE","SE0009268360"]
["Guam","GU","EKTA B","SE0000163628"]
["Guatemala","GT","ELAN B","SE0000119299"]
["Guernsey","GG","ELEC","SE0001572520"]
["Guinea","GN","ELOS B","SE0000120776"]
["Guinea-Bissau","GW","ELTEL","SE0006509949"]
["Guyana","GY","ELUX A","SE0000103806"]
["Haiti","HT","ELUX B","SE0000103814"]
["Heard Island and McDonald Islands","HM","EMPIR B","SE0010769182"]
["Holy See (Vatican City State)","VA","ENDO","SE0008294334"]
["Honduras","HN","ENEA","SE0009697220"]
["Hong Kong","HK","ENG","SE0008585525"]
["Hungary","HU","ENRO","SE0011256312"]
["Iceland","IS","ENRO PREF","SE0004633956"]
["India","IN","EOLU B","SE0007075056"]
["Indonesia","ID","EPI A","SE0011166933"]
["Iran, Islamic Republic of","IR","EPI B","SE0011166941"]
["Iraq","IQ","EPIS B","SE0003491562"]
["Ireland","IE","EQT","SE0012853455"]
["Isle of Man","IM","ERIC A","SE0000108649"]
["Israel","IL","ERIC B","SE0000108656"]
["Italy","IT","ESSITY A","SE0009922156"]
["Jamaica","JM","ESSITY B","SE0009922164"]
["Japan","JP","EVO","SE0012673267"]
["Jersey","JE","EWRK","SE0002402701"]
["Jordan","JO","FABG","SE0011166974"]
["Kazakhstan","KZ","FAG","SE0010048884"]
["Kenya","KE","FEEL","SE0000381840"]
["Kiribati","KI","FING B","SE0008374250"]
["Korea, Democratic People's Republic of (North Korea)","KP","FMM B","SE0001116021"]
["Korea, Republic of (South Korea)","KR","FNM","SE0005468717"]
["Kosovo (under UN Security Council Resolution 1244)","XK","FPAR A","SE0013512506"]
["Kuwait","KW","FPAR D","SE0013512514"]
["Kyrgyzstan","KG","FPAR PREF","SE0011309236"]
["Lao People's Democratic Republic","LA","FPIP","SE0001338039"]
["Latvia","LV","G5EN","SE0001824004"]
["Lebanon","LB","GARO","SE0008008262"]
["Lesotho","LS","GETI B","SE0000202624"]
["Liberia","LR","GHP","SE0002579912"]
["Libya","LY","GREEN","SE0010985028"]
["Liechtenstein","LI","GRNG","SE0006288015"]
["Lithuania","LT","GUNN","SE0000195570"]
["Luxembourg","LU","HANDI","SE0010298109"]
["Macao","MO","HANZA","SE0005878543"]
["Macedonia, the Former Yugoslav Republic of ","MK","HAV B","SE0000312043"]
["Madagascar","MG","HEBA B","SE0012676336"]
["Malawi","MW","HEM B","SE0005594728"]
["Malaysia","MY","HEMF","SE0007126115"]
["Maldives","MV","HEMF PREF","SE0007126123"]
["Mali","ML","HEXA B","SE0000103699"]
["Malta","MT","HIQ","SE0012454619"]
["Marshall Islands","MH","HLDX","SE0000105199"]
["Martinique","MQ","HM B","SE0000106270"]
["Mauritania","MR","HMS","SE0009997018"]
["Mauritius","MU","HNSA","SE0002148817"]
["Mayotte","YT","HOFI","SE0006887063"]
["Mexico","MX","HOLM A","SE0011090000"]
["Micronesia, Federated States of ","FM","HOLM B","SE0011090018"]
["Moldova","MD","HPOL B","SE0007074281"]
["Monaco","MC","HTRO","SE0002367797"]
["Mongolia","MN","HUFV A","SE0000170375"]
["Montenegro","ME","HUFV C","SE0000170383"]
["Montserrat","MS","HUM","SE0008040653"]
["Morocco","MA","HUSQ A","SE0001662222"]
["Mozambique","MZ","HUSQ B","SE0001662230"]
["Myanmar","MM","IAR B","SE0005851706"]
["Namibia","NA","IBT B","SE0008015259"]
["Nauru","NR","ICA","SE0000652216"]
["Nepal","NP","ICTA","SE0010520155"]
["Netherlands","NL","IMMNOV","SE0006091997"]
["New Caledonia","NC","IMMU","SE0005003654"]
["New Zealand","NZ","INDT","SE0001515552"]
["Nicaragua","NI","INDU A","SE0000190126"]
["Niger","NE","INDU C","SE0000107203"]
["Nigeria","NG","INSTAL","SE0009664253"]
["Niue ","NU","INTRUM","SE0000936478"]
["Norfolk Island","NF","INVE A","SE0000107401"]
["Northern Mariana Islands","MP","INVE B","SE0000107419"]
["Norway","NO","INWI","SE0006220018"]
["Oman","OM","IS","SE0006421871"]
["Pakistan","PK","ITAB B","SE0008375117"]
["Palau","PW","IVSO","SE0001200015"]
["Palestinian Territory, Occupied","PS","JM","SE0000806994"]
["Panama","PA","JOMA","SE0012481364"]
["Papua New Guinea","PG","K2A B","SE0010520254"]
["Paraguay","PY","K2A PREF","SE0006852075"]
["Peru","PE","KABE B","SE0000107724"]
["Philippines","PH","KAR","SE0012323715"]
["Pitcairn","PN","KARO","SE0007464888"]
["Poland","PL","KDEV","SE0002190926"]
["Portugal","PT","KFAST B","SE0013382355"]
["Puerto Rico","PR","KINV A","SE0013256674"]
["Qatar","QA","KINV B","SE0013256682"]
["Réunion","RE","KLED","SE0000549412"]
["Romania","RO","KLOV A","SE0006593901"]
["Russian Federation","RU","KLOV B","SE0006593919"]
["Rwanda","RW","KLOV PREF","SE0006593927"]
["Saint Barthélémy","BL","KNOW","SE0000421273"]
["Saint Lucia","LC","LAGR B","SE0007603493"]
["Saint Martin","MF","LAMM B","SE0000386138"]
["Saint Pierre and Miquelon","PM","LATO B","SE0010100958"]
["Samoa","WS","LEO","SE0008091904"]
["San Marino","SM","LIAB","SE0001852419"]
["Sao Tome and Principe","ST","LIFCO B","SE0006370730"]
["Saudi Arabia","SA","LIME","SE0011870195"]
["Senegal","SN","LOOM B","SE0002683557"]
["Serbia","RS","LUND B","SE0000108847"]
["Seychelles","SC","LUPE","SE0000825820"]
["Sierra Leone","SL","MAG","SE0007074505"]
["Singapore","SG","MCAP","SE0009160872"]
["Sint Maarten","SX","MCOV B","SE0009778848"]
["Slovakia","SK","MEAB B","SE0000507659"]
["Slovenia","SI","MEKO","SE0002110064"]
["Solomon Islands","SB","MIDW A","SE0000122657"]
["Somalia","SO","MIDW B","SE0000122673"]
["South Africa","ZA","MIPS","SE0009216278"]
["South Georgia and the South Sandwich Islands","GS","MMGR B","SE0009922305"]
["Spain","ES","MOB","SE0013121340"]
["Sri Lanka","LK","MOMENT","SE0000680902"]
["St Helena ","SH","MQ","SE0003303460"]
["St Kitts and Nevis","KN","MSAB B","SE0000526626"]
["St Vincent and the Grenadines","VC","MSON A","SE0000565210"]
["Sudan","SD","MSON B","SE0000565228"]
["Suriname","SR","MTG A","SE0000412363"]
["Svalbard and Jan Mayen","SJ","MTG B","SE0000412371"]
["Swaziland","SZ","MTRS","SE0009806607"]
["Switzerland","CH","MULQ","SE0000353898"]
["Sydsudan","SS","MVIR B","SE0000273294"]
["Syrian Arab Republic","SY","MYCR","SE0000375115"]
["Taiwan, Province of China","TW","NAXS","SE0001965369"]
["Tajikistan","TJ","NCAB","SE0011167956"]
["Tanzania, United Republic of","TZ","NCC A","SE0000118952"]
["Thailand","TH","NCC B","SE0000117970"]
["Timor-Leste","TL","NENT A","SE0012324226"]
["Togo","TG","NENT B","SE0012116390"]
["Tokelau ","TK","NET B","SE0012455525"]
["Tonga","TO","NETI B","SE0000366098"]
["Trinidad and Tobago","TT","NEWA B","SE0000426546"]
["Tunisia","TN","NGS","SE0009947708"]
["Turkey","TR","NIBE B","SE0008321293"]
["Turkmenistan","TM","NIL B","SE0007100342"]
["Turks and Caicos Islands","TC","NMAN","SE0011204510"]
["Tuvalu","TV","NOBI","SE0000949331"]
["Uganda","UG","NOBINA","SE0007185418"]
["Ukraine","UA","NOLA B","SE0000109811"]
["United Arab Emirates","AE","NOTE","SE0001161654"]
["United Kingdom","GB","NP3","SE0006342333"]
["United States","US","NP3 PREF","SE0010820514"]
["United States Minor Outlying Islands","UM","NTEK B","SE0000567752"]
["Uruguay","UY","NVP","SE0002575340"]
["Uzbekistan","UZ","NYF","SE0011426428"]
["Wallis and Futuna","WF","OASM","SE0000722365"]
["Vanuatu","VU","ODD","SE0002017657"]
["Venezuela","VE","OEM B","SE0005876968"]
["Western Sahara","EH","ONCO","SE0009414576"]
["Viet Nam","VN","OP","SE0005095601"]
["Virgin Islands, British ","VG","OP PREF","SE0006992335"]
["Virgin Islands, U.S.","VI","OP PREFB","SE0008041248"]
["Yemen","YE","OPUS","SE0001696683"]
["Zambia","ZM","ORES","SE0008321608"]
["Zimbabwe","ZW","ORTI A","SE0000188930"]
["Åland Islands","AX","ORTI B","SE0000123085"]
["ADC (Andean Development Corporation)","5U","ORX","SE0000736415"]
["AfDB (African Development Bank)","5D","PACT","SE0000412991"]
["African Development Fund","5Q","PEAB B","SE0000106205"]
["AMF (Arab Monetary Fund)","5M","PENG B","SE0011337666"]
["AsDB (Asian Development Bank)","5E","PLAZ B","SE0004977692"]
["Asian Development Fund","5R","PLED","SE0003815604"]
["BADEA (Banque arabe pour le développement économique en Afrique)","5N","PNDX B","SE0007100359"]
["Banque Centrale des États de l’Afrique de l’Ouest (BCEAO)","5O","POOL B","SE0000567539"]
["Banque des États de l’Afrique centrale (BEAC)","5W","PREC","SE0001823303"]
["BIS (Bank for International Settlements)","5B","PREV B","SE0000356008"]
["CABEI (Central American Bank for Economic Integration)","5T","PRIC B","SE0000233934"]
["CASDB (Central African States’ Development Bank)","5P","PROB","SE0001280355"]
["CDB (Caribbean Development Bank)","5L","PROF B","SE0000393860"]
["CERN (European Organisation for Nuclear Research)","6P","QLINEA","SE0011527845"]
["Committee of the Regions","4Q","QLRO","SE0003652163"]
["Communauté Économique et Monétaire de l’Afrique Centrale (CEMAC) ","5X","RAIL","SE0010441139"]
["Council of Europe","6C","RATO A","SE0000191090"]
["Council of Europe Development Bank (CEB) ","6U","RATO B","SE0000111940"]
["Council of the European Union ","4L","RAY B","SE0000135485"]
["Court of Auditors","4N","RECI B","SE0005757267"]
["Single Resolution Board ","4M","REJL B","SE0000123671"]
["Eastern Caribbean Central Bank (ECCB)","5I","RESURS","SE0007665823"]
["Eastern Caribbean Currency Union (ECCU)","5Y","RNBS","SE0005223674"]
["EBRD (European Bank for Reconstruction and Development)","5F","RROS","SE0000112252"]
["EBU/UER (European Broadcasting Union/Union européenne de radio-télévision)","6K","SAAB B","SE0000112385"]
["EC (European Commission)","4D","SAGA A","SE0004635878"]
["ECMWF (European Centre for Medium-Range Weather Forecasts)","6N","SAGA B","SE0005127818"]
["Economic and Social Committee","4P","SAGA D","SE0009161052"]
["ECSC (European Coal and Steel Community)","4H","SAGA PREF","SE0001629288"]
["EDF (European Development Fund)","4E","SAND","SE0000667891"]
["EIB (European Investment Bank)","4C","SANION","SE0005794617"]
["EIF (European Investment Fund)","4G","SAS","SE0003366871"]
["EMBL (European Molecular Biology Laboratory)","6O","SBB B","SE0009554454"]
["EMS (European Monetary System)","4B","SBB D","SE0011844091"]
["EPO (European Patent Office)","6F","SCA A","SE0000171886"]
["ESA (European Space Agency)","6E","SCA B","SE0000112724"]
["ESO (European Southern Observatory)","6M","SCST","SE0005999760"]
["EU-Africa Infrastructure Trust Fund","4R","SEB A","SE0000148884"]
["EUMETSAT (European Organisation for the Exploitation of Meteorological Satellites)","6L","SEB C","SE0000120784"]
["Eurasian Development Bank (EDB)","6S","SECT B","SE0012853661"]
["EUROCONTROL (European Organisation for the Safety of Air Navigation)","6G","SECU B","SE0000163594"]
["European Central Bank","4F","SEMC","SE0000379497"]
["European Council","4O","SENS","SE0000567729"]
["European Parliament","4K","SHB A","SE0007100599"]
["European Stability Mechanism (ESM)","4S","SHB B","SE0007100607"]
["EUTELSAT (European Telecommunications Satellite Organisation)","6H","SHOT","SE0007640156"]
["FAO (Food and Agriculture Organisation)","1J","SINCH","SE0007439112"]
["FEMIP (Facility for Euro-Mediterranean Investment and Partnership)","4V","SINT","SE0000950982"]
["Fonds spécial unifié de développement","5S","SKA B","SE0000113250"]
["IADB (Inter-American Development Bank)","5C","SKF A","SE0000108201"]
["IAEA (International Atomic Energy Agency)","1R","SKF B","SE0000108227"]
["IBEC (International Bank for Economic Co-operation)","5J","SKIS B","SE0012141687"]
["IBRD (International Bank for Reconstruction and Development)","1E","SOBI","SE0000872095"]
["ICRC (International Committee of the Red Cross)","6D","SOF B","SE0000323305"]
["IDA (International Development Association)","1F","SPOR","SE0004777241"]
["IFAD (International Fund for Agricultural Development)","1L","SRNKE B","SE0007278841"]
["IFC (International Finance Corporation)","1M","SSAB A","SE0000171100"]
["IIB (International Investment Bank)","5K","SSAB B","SE0000120669"]
["IIC (Inter-American Investment Corporation)","5G","SSM","SE0009663511"]
["ILO (International Labour Organisation)","1S","STAR A","SE0007158928"]
["IMF (International Monetary Fund)","1C","STAR B","SE0005992831"]
["INTELSAT (International Telecommunications Satellite Organisation)","6J","STEF B","SE0006543344"]
["IOM (International Organisation for Migration)","6Q","STRAX","SE0012040459"]
["Islamic Development Bank (IDB)","6R","STWK","SE0012257970"]
["ITU (International Telecommunication Union)","1T","SWEC A","SE0000489080"]
["Joint Committee of the European Supervisory Authorities (ESAs)","4T","SWEC B","SE0000489098"]
["MIGA (Multilateral Investment Guarantee Agency)","1N","SWED A","SE0000242455"]
["NATO (North Atlantic Treaty Organisation)","6B","SVED B","SE0000407991"]
["Neighbourhood Investment Facility","4I","SVIK","SE0000653230"]
["NIB (Nordic Investment Bank)","5H","SWMA","SE0000310336"]
["OECD (Organisation for Economic Co-operation and Development)","5AX","SVOL A","SE0010663302"]
["Other International Financial Organisations n.i.e.","5Z","SVOL B","SE0010663310"]
["Other International Non-Financial Organisations n.i.e.","6Z","SWOL B","SE0001733841"]
["Other small European Union Institutions (Ombudsman, Data Protection Supervisor etc.)","4Z","SYSR","SE0002133975"]
["Paris Club Creditor Institutions","6T","TEL2 A","SE0005190220"]
["Rest of UN Organisations n.i.e.","1Z","TEL2 B","SE0005190238"]
["UNESCO (United Nations Educational, Scientific and Cultural Organisation)","1H","TELIA","SE0000667925"]
["UNHCR (United Nations High Commissioner for Refugees)","1P","TETY","SE0012455202"]
["UNICEF (United Nations Children’s Fund)","1O","TFBANK","SE0007331608"]
["UNRWA (United Nations Relief and Works Agency for Palestine)","1Q","THULE","SE0006422390"]
["West African Economic and Monetary Union (WAEMU)","6I","TOBII","SE0002591420"]
["WHO (World Health Organisation)","1K","TRAC B","SE0000391716"]
["WTO (World Trade Organisation)","1D","TRAD","SE0001552357"]
[null,null,"TREL B","SE0000114837"]
[null,null,"TRENT","SE0008348767"]
[null,null,"TROAX","SE0012729366"]
[null,null,"WALL B","SE0007074844"]
[null,null,"VBG B","SE0000115107"]
[null,null,"VICO","SE0007577895"]
[null,null,"WIHL","SE0011205194"]
[null,null,"WISE","SE0007277876"]
[null,null,"VIT B","SE0007871363"]
[null,null,"VITR","SE0011205202"]
[null,null,"VOLO","SE0009143662"]
[null,null,"VOLO PREF","SE0009143670"]
[null,null,"VOLV A","SE0000115420"]
[null,null,"VOLV B","SE0000115446"]
[null,null,"VRG B","SE0000396822"]
[null,null,"VSSAB B","SE0010820613"]
[null,null,"XANO B","SE0012674232"]
[null,null,"XBRANE","SE0007789409"]
[null,null,"XVIVO","SE0004840718"]
[null,null,"ZETA","SE0001105511"]

{"sheet":"Kontroll","index":6,"n_rows":1,"n_cols":4,"rows_kept":1,"cut":false,"hidden":true,"merged":[]}
["Variabelkod","Värde","Enhet","Medelvärde"]

{"sheet":"db_kontroller","index":7,"n_rows":3,"n_cols":2,"rows_kept":3,"cut":false,"hidden":true,"merged":[]}
[]
[]
[null,{"$f":"HYPERLINK($G$14)","v":""}]

{"sheet":"Combo","index":8,"n_rows":11,"n_cols":7,"rows_kept":11,"cut":false,"hidden":true,"merged":[]}
[null,null,null,null,null,null,"Kvittens på insänd blankett:"]
[2,"Land",null,null,null,null,"OrgNr:"]
[3,"Land",null,null,null,null,"Blankett:"]
[4,"Land",null,null,null,null,"RapportDatum:"]
[5,"Land",null,null,null,null,"Insänt av:"]
[6,"Land",null,null,null,null,"Tidpunkt:"]
[7,"VP-BOP-KF",null,null,null,null,"Mottagare:"]
[8,"VP-BOP-KF"]
[9,"VP-BOP-KF"]
[10,"VP-BOP-KF"]
[11,"VP-BOP-KF"]

{"sheet":"db","index":9,"n_rows":20,"n_cols":27,"rows_kept":20,"cut":false,"hidden":true,"merged":[]}
["Var.Värde","IdVariabel","Kortnamn","Kopplad till cell","Extkod1","Extkod2","Extkod3","Extkod4","Extkod5","Extkod6","Extkod7","Extkod8","Extkod9","Extkod10","Extkod11","Imoprt_1","Gr.Var?","Import_2","Variabelkod","Omr.faktor","Variabeltext","FlexVarReferens","IDVariabel",null,null,null,"OK<br> "]
[{"$f":"IF(ISBLANK(Inm_30824_D2_cmb7_),\"\",$T$2 * Inm_30824_D2_cmb7_)","v":""},"30824_D2_cmb7_","Handel i sven, Lång , Inflöde","VP205'!Inm_30824_D2_cmb7_","32211","S","L","SEK","TOT","I","M","X","H2",{"$f":"VLOOKUP('VP205'!$B$8,FlexDimensioner!$C$1:$D$382,2,FALSE)","v":"VALFRI"},"SEK",{"$f":"VLOOKUP(B2,Import!A$1:B$20000,2,FALSE)","v":{"$error":"#N/A"}},"EJ_GRANSKN",{"$f":"VLOOKUP(S2,Import!A$1:B$20000,2,FALSE)","v":{"$error":"#N/A"}},{"$f":"CONCATENATE(E2,\"_\",F2,\"_\",G2,\"_\",H2,\"_\",I2,\"_\",J2,\"_\",K2,\"_\",L2,\"_\",M2,\"_\",N2,\"_\",O2)","v":"32211_S_L_SEK_TOT_I_M_X_H2_VALFRI_SEK"},1000,null,"30824_D2_cmb7_",{"$f":"VLOOKUP(B2,Import!E$1:F$20000,2,FALSE)","v":{"$error":"#N/A"}}]
[{"$f":"IF(ISBLANK(Inm_30824_D3_cmb8_),\"\",$T$3 * Inm_30824_D3_cmb8_)","v":""},"30824_D3_cmb8_","Handel i sven, Lång , Inflöde","VP205'!Inm_30824_D3_cmb8_","32211","S","L","SEK","TOT","I","M","X","H2",{"$f":"VLOOKUP('VP205'!$B$9,FlexDimensioner!$C$1:$D$382,2,FALSE)","v":"VALFRI"},"SEK",{"$f":"VLOOKUP(B3,Import!A$1:B$20000,2,FALSE)","v":{"$error":"#N/A"}},"EJ_GRANSKN",{"$f":"VLOOKUP(S3,Import!A$1:B$20000,2,FALSE)","v":{"$error":"#N/A"}},"32211_S_L_SEK_TOT_I_M_X_H2_VALFRI_SEK",1000,null,"30824_D3_cmb8_",{"$f":"VLOOKUP(B3,Import!E$1:F$20000,2,FALSE)","v":{"$error":"#N/A"}}]
[{"$f":"IF(ISBLANK(Inm_30824_D4_cmb9_),\"\",$T$4 * Inm_30824_D4_cmb9_)","v":""},"30824_D4_cmb9_","Handel i sven, Lång , Inflöde","VP205'!Inm_30824_D4_cmb9_","32211","S","L","SEK","TOT","I","M","X","H2",{"$f":"VLOOKUP('VP205'!$B$10,FlexDimensioner!$C$1:$D$382,2,FALSE)","v":"VALFRI"},"SEK",{"$f":"VLOOKUP(B4,Import!A$1:B$20000,2,FALSE)","v":{"$error":"#N/A"}},"EJ_GRANSKN",{"$f":"VLOOKUP(S4,Import!A$1:B$20000,2,FALSE)","v":{"$error":"#N/A"}},"32211_S_L_SEK_TOT_I_M_X_H2_VALFRI_SEK",1000,null,"30824_D4_cmb9_",{"$f":"VLOOKUP(B4,Import!E$1:F$20000,2,FALSE)","v":{"$error":"#N/A"}}]
[{"$f":"IF(ISBLANK(Inm_30824_D5_cmb10_),\"\",$T$5 * Inm_30824_D5_cmb10_)","v":""},"30824_D5_cmb10_","Handel i sven, Lång , Inflöde","VP205'!Inm_30824_D5_cmb10_","32211","S","L","SEK","TOT","I","M","X","H2",{"$f":"VLOOKUP('VP205'!$B$11,FlexDimensioner!$C$1:$D$382,2,FALSE)","v":"VALFRI"},"SEK",{"$f":"VLOOKUP(B5,Import!A$1:B$20000,2,FALSE)","v":{"$error":"#N/A"}},"EJ_GRANSKN",{"$f":"VLOOKUP(S5,Import!A$1:B$20000,2,FALSE)","v":{"$error":"#N/A"}},"32211_S_L_SEK_TOT_I_M_X_H2_VALFRI_SEK",1000,null,"30824_D5_cmb10_",{"$f":"VLOOKUP(B5,Import!E$1:F$20000,2,FALSE)","v":{"$error":"#N/A"}}]
[{"$f":"IF(ISBLANK(Inm_30824_D6_cmb11_),\"\",$T$6 * Inm_30824_D6_cmb11_)","v":""},"30824_D6_cmb11_","Handel i sven, Lång , Inflöde","VP205'!Inm_30824_D6_cmb11_","32211","S","L","SEK","TOT","I","M","X","H2",{"$f":"VLOOKUP('VP205'!$B$12,FlexDimensioner!$C$1:$D$382,2,FALSE)","v":"VALFRI"},"SEK",{"$f":"VLOOKUP(B6,Import!A$1:B$20000,2,FALSE)","v":{"$error":"#N/A"}},"EJ_GRANSKN",{"$f":"VLOOKUP(S6,Import!A$1:B$20000,2,FALSE)","v":{"$error":"#N/A"}},"32211_S_L_SEK_TOT_I_M_X_H2_VALFRI_SEK",1000,null,"30824_D6_cmb11_",{"$f":"VLOOKUP(B6,Import!E$1:F$20000,2,FALSE)","v":{"$error":"#N/A"}}]
[{"$f":"IF(ISBLANK(Inm_30915_D22_cmb2_),\"\",$T$7* Inm_30915_D22_cmb2_)","v":""},"30915_D22_cmb2_","Handel i utlä, Lång , Utflöde","VP205'!Inm_30915_D22_cmb2_","32111","T","L","VAL",{"$f":"VLOOKUP('VP205'!$B$17,FlexDimensioner!$A$1:$B$379,2,FALSE)","v":"VALFRI"},"U","M","X","H2","X","SEK",{"$f":"VLOOKUP(B7,Import!A$1:B$20000,2,FALSE)","v":{"$error":"#N/A"}},"EJ_GRANSKN",{"$f":"VLOOKUP(S7,Import!A$1:B$20000,2,FALSE)","v":{"$error":"#N/A"}},"32111_T_L_VAL_VALFRI_U_M_X_H2_X_SEK",1000,null,"30915_D22_cmb2_",{"$f":"VLOOKUP(B7,Import!E$1:F$20000,2,FALSE)","v":{"$error":"#N/A"}}]
[{"$f":"IF(ISBLANK(Inm_30915_D23_cmb3_),\"\",$T$8* Inm_30915_D23_cmb3_)","v":""},"30915_D23_cmb3_","Handel i utlä, Lång , Utflöde","VP205'!Inm_30915_D23_cmb3_","32111","T","L","VAL",{"$f":"VLOOKUP('VP205'!$B$18,FlexDimensioner!$A$1:$B$379,2,FALSE)","v":"VALFRI"},"U","M","X","H2","X","SEK",{"$f":"VLOOKUP(B8,Import!A$1:B$20000,2,FALSE)","v":{"$error":"#N/A"}},"EJ_GRANSKN",{"$f":"VLOOKUP(S8,Import!A$1:B$20000,2,FALSE)","v":{"$error":"#N/A"}},"32111_T_L_VAL_VALFRI_U_M_X_H2_X_SEK",1000,null,"30915_D23_cmb3_",{"$f":"VLOOKUP(B8,Import!E$1:F$20000,2,FALSE)","v":{"$error":"#N/A"}}]
[{"$f":"IF(ISBLANK(Inm_30915_D24_cmb4_),\"\",$T$9* Inm_30915_D24_cmb4_)","v":""},"30915_D24_cmb4_","Handel i utlä, Lång , Utflöde","VP205'!Inm_30915_D24_cmb4_","32111","T","L","VAL",{"$f":"VLOOKUP('VP205'!$B$19,FlexDimensioner!$A$1:$B$379,2,FALSE)","v":"VALFRI"},"U","M","X","H2","X","SEK",{"$f":"VLOOKUP(B9,Import!A$1:B$20000,2,FALSE)","v":{"$error":"#N/A"}},"EJ_GRANSKN",{"$f":"VLOOKUP(S9,Import!A$1:B$20000,2,FALSE)","v":{"$error":"#N/A"}},"32111_T_L_VAL_VALFRI_U_M_X_H2_X_SEK",1000,null,"30915_D24_cmb4_",{"$f":"VLOOKUP(B9,Import!E$1:F$20000,2,FALSE)","v":{"$error":"#N/A"}}]
[{"$f":"IF(ISBLANK(Inm_30915_D25_cmb5_),\"\",$T$10* Inm_30915_D25_cmb5_)","v":""},"30915_D25_cmb5_","Handel i utlä, Lång , Utflöde","VP205'!Inm_30915_D25_cmb5_","32111","T","L","VAL",{"$f":"VLOOKUP('VP205'!$B$20,FlexDimensioner!$A$1:$B$379,2,FALSE)","v":"VALFRI"},"U","M","X","H2","X","SEK",{"$f":"VLOOKUP(B10,Import!A$1:B$20000,2,FALSE)","v":{"$error":"#N/A"}},"EJ_GRANSKN",{"$f":"VLOOKUP(S10,Import!A$1:B$20000,2,FALSE)","v":{"$error":"#N/A"}},"32111_T_L_VAL_VALFRI_U_M_X_H2_X_SEK",1000,null,"30915_D25_cmb5_",{"$f":"VLOOKUP(B10,Import!E$1:F$20000,2,FALSE)","v":{"$error":"#N/A"}},null,null,null,"2017111_16-21-39_838155105 "]
[{"$f":"IF(ISBLANK(Inm_30915_D26_cmb6_),\"\",$T$11* Inm_30915_D26_cmb6_)","v":""},"30915_D26_cmb6_","Handel i utlä, Lång , Utflöde","VP205'!Inm_30915_D26_cmb6_","32111","T","L","VAL",{"$f":"VLOOKUP('VP205'!$B$21,FlexDimensioner!$A$1:$B$379,2,FALSE)","v":"VALFRI"},"U","M","X","H2","X","SEK",{"$f":"VLOOKUP(B11,Import!A$1:B$20000,2,FALSE)","v":{"$error":"#N/A"}},"EJ_GRANSKN",{"$f":"VLOOKUP(S11,Import!A$1:B$20000,2,FALSE)","v":{"$error":"#N/A"}},"32111_T_L_VAL_VALFRI_U_M_X_H2_X_SEK",1000,null,"30915_D26_cmb6_",{"$f":"VLOOKUP(B11,Import!E$1:F$20000,2,FALSE)","v":{"$error":"#N/A"}}]
[{"$f":"IF(ISBLANK(Inm_103649),\"\",$T$12 * Inm_103649)","v":""},103649,"Handel i sven, Lång , Inflöde","VP205'!Inm_103649","32211","S","L","SEK","TOT","I","M","X","H2","VP","SEK",{"$f":"VLOOKUP(B12,Import!A$1:B$20000,2,FALSE)","v":{"$error":"#N/A"}},"EJ_GRANSKN",{"$f":"VLOOKUP(S12,Import!A$1:B$20000,2,FALSE)","v":{"$error":"#N/A"}},{"$f":"CONCATENATE(E12,\"_\",F12,\"_\",G12,\"_\",H12,\"_\",I12,\"_\",J12,\"_\",K12,\"_\",L12,\"_\",M12,\"_\",N12,\"_\",O12)","v":"32211_S_L_SEK_TOT_I_M_X_H2_VP_SEK"},1000,null,null,{"$f":"VLOOKUP(B12,Import!E$1:F$20000,2,FALSE)","v":{"$error":"#N/A"}}]
[{"$f":"IF(ISBLANK(Inm_103650),\"\",$T$13 * Inm_103650)","v":""},103650,"Handel i utlä, Lång , Utflöde","VP205'!Inm_103650","32111","T","L","VAL","TOT","U","M","X","H2","X","SEK",{"$f":"VLOOKUP(B13,Import!A$1:B$20000,2,FALSE)","v":{"$error":"#N/A"}},"EJ_GRANSKN",{"$f":"VLOOKUP(S13,Import!A$1:B$20000,2,FALSE)","v":{"$error":"#N/A"}},{"$f":"CONCATENATE(E13,\"_\",F13,\"_\",G13,\"_\",H13,\"_\",I13,\"_\",J13,\"_\",K13,\"_\",L13,\"_\",M13,\"_\",N13,\"_\",O13)","v":"32111_T_L_VAL_TOT_U_M_X_H2_X_SEK"},1000,null,null,{"$f":"VLOOKUP(B13,Import!E$1:F$20000,2,FALSE)","v":{"$error":"#N/A"}}]
[]
[]
[]
[]
[]
[]
[null,null,null,null,null,null,null,null,null,null,null,null,null,null,null,null,null,null,null,null,null,null,null,null,null,null,"Filtransfer OK "]